bitfinex/quotes_ETHUSD_20260217
["timestamp","ask_amount","ask_price","bid_price","bid_amount"]
[1771360226208,7.73175245,1997.2,1996.5,0.46112158]
[1771360227414,7.73175245,1997.2,1996.6,1.25212861]
[1771360227993,6.48,1997.2,1996.6,1.25212861]
[1771360228222,7.73175696,1997.2,1996.7,0.001]
[1771360228594,7.73285696,1997.2,1996.7,0.001]
[1771360228915,6.4811,1997.2,1996.7,0.001]
[1771360229496,0.0011,1997.2,1996.7,0.001]
[1771360231403,0.0011,1997.2,1996.8,1.71212478]
[1771360232210,0.0011,1997.2,1996.9,0.46012158]
[1771360233498,0.0011,1997.2,1997.0,1.71199939]
[1771360236900,0.0011,1997.2,1997.1,0.46012158]
[1771360237519,0.708,1997.6,1997.1,0.46012158]
[1771360237828,1.25137651,1997.8,1997.0,1.91587781]
[1771360238029,1.72597537,1997.8,1997.0,1.91587781]
[1771360238228,0.47459886,1997.7,1996.9,1.71202645]
[1771360238629,0.47459886,1997.7,1996.7,0.001]
[1771360238630,0.47459886,1997.7,1996.7,1.71313936]
[1771360238940,0.47459886,1997.7,1996.7,0.001]
[1771360239312,0.47459886,1997.6,1996.7,0.001]
[1771360239624,0.47459886,1997.4,1996.7,0.001]
[1771360240129,1.72628864,1997.3,1996.7,0.001]
[1771360242026,1.72628864,1997.3,1996.8,0.001]
[1771360242738,0.47459886,1997.2,1996.8,0.001]
[1771360244124,1.95881513,1997.1,1996.8,0.001]
[1771360244429,0.47459886,1997.0,1996.5,0.001]
[1771360246414,1.2519405,1996.9,1996.5,0.001]
[1771360246612,0.708,1996.9,1996.5,0.001]
[1771360247537,7.73184938,1997.1,1996.5,0.001]
[1771360247702,7.73184938,1997.1,1996.5,0.45996056]
[1771360248336,8.22201722,1997.1,1996.5,0.001]
[1771360248536,0.49016784,1997.0,1996.5,0.001]
[1771360249220,8.44184938,1997.1,1996.5,0.001]
[1771360249742,6.48,1997.1,1996.5,0.45996056]
[1771360250267,0.71,1997.2,1996.5,0.45996056]
[1771360250541,0.71,1997.2,1996.7,0.45896056]
[1771360252416,0.71,1997.2,1996.8,1.2520032]
[1771360253518,1.96175271,1997.2,1996.7,1.71102292]
[1771360254131,1.96175271,1997.2,1996.7,0.45896056]
[1771360254453,1.76175271,1997.2,1996.7,0.45896056]
[1771360254635,0.51,1997.2,1996.7,1.71099732]
[1771360254953,1.7617604,1997.2,1996.7,1.71099732]
[1771360256454,1.7617604,1997.2,1996.7,0.45896056]
[1771360256654,1.7617604,1997.2,1996.7,0.001]
[1771360256955,0.0011,1997.1,1996.7,0.001]
[1771360257133,0.46652742,1997.1,1996.7,0.001]
[1771360258229,0.0011,1997.1,1996.7,0.001]
[1771360258560,0.0011,1997.1,1996.7,0.46768483]
[1771360260652,0.0011,1997.1,1996.7,0.001]
[1771360260834,0.46652742,1997.1,1996.7,0.001]
[1771360262751,1.25187781,1997.0,1996.7,0.001]
[1771360264047,1.71730523,1997.0,1996.7,0.001]
[1771360264366,1.25187781,1997.0,1996.7,0.001]
[1771360264936,0.7151,1997.1,1996.7,0.001]
[1771360265356,0.7151,1997.1,1996.7,0.46768483]
[1771360266470,0.0011,1997.1,1996.7,0.46768483]
[1771360266968,0.0011,1997.1,1996.7,1.71974215]
[1771360267566,0.0011,1997.1,1996.7,1.71974655]
[1771360268869,0.0011,1997.1,1996.8,0.46668483]
[1771360269076,0.0011,1997.2,1997.0,0.46668483]
[1771360270544,0.0011,1997.1,1997.0,0.46668483]
[1771360270880,0.0011,1997.2,1997.0,0.46668483]
[1771360272663,0.0011,1997.2,1997.1,1.25181513]
[1771360273359,0.0011,1997.2,1996.8,0.663]
[1771360273543,0.0011,1997.2,1996.7,0.001]
[1771360274257,0.0011,1997.2,1996.7,1.2530633]
[1771360275364,0.0011,1997.2,1996.7,0.001]
[1771360275365,0.46604895,1997.2,1996.7,0.001]
[1771360278672,1.25181513,1997.1,1996.7,0.001]
[1771360282765,0.46494895,1997.0,1996.7,0.001]
[1771360283263,1.71688945,1996.9,1996.7,0.001]
[1771360283461,1.71688945,1996.9,1996.5,0.001]
[1771360284075,1.71688945,1996.9,1996.8,0.001]
[1771360284274,1.71688945,1996.9,1996.5,0.001]
[1771360284478,1.71688945,1996.9,1996.7,0.001]
[1771360287197,0.46494895,1996.9,1996.7,0.001]
[1771360287362,1.71690593,1996.9,1996.7,0.001]
[1771360288248,1.71690593,1996.9,1995.9,0.49107617]
[1771360288249,0.46494895,1996.8,1995.9,0.49107617]
[1771360288455,1.18094895,1996.7,1995.9,1.74364027]
[1771360289265,0.46494895,1996.6,1995.6,0.49107617]
[1771360289468,0.46494895,1996.6,1995.7,0.49107617]
[1771360289794,0.46494895,1996.4,1995.7,0.49107617]
[1771360289956,0.46494895,1996.4,1995.5,2.40686287]
[1771360290980,0.46494895,1996.4,1995.5,1.74486287]
[1771360291756,1.25244226,1996.1,1995.5,0.49207617]
[1771360291975,1.25244226,1996.1,1995.5,0.001]
[1771360294255,0.46494895,1996.0,1995.5,0.001]
[1771360295361,0.716,1995.9,1995.5,0.001]
[1771360295892,1.18094895,1995.9,1995.5,0.001]
[1771360296093,1.18094895,1995.9,1995.6,0.001]
[1771360296391,1.96862402,1995.9,1995.6,0.001]
[1771360297202,0.46494895,1995.8,1995.4,0.001]
[1771360298085,1.96862402,1995.9,1995.4,0.001]
[1771360298574,2.43357297,1995.9,1995.4,0.001]
[1771360299189,0.46494895,1995.8,1995.2,0.001]
[1771360299405,0.46494895,1995.5,1995.0,0.001]
[1771360299624,0.46494895,1995.5,1994.3,5.01416207]
[1771360299625,0.46494895,1995.3,1994.3,1.7446123]
[1771360299833,0.46494895,1995.3,1994.3,0.49107617]
[1771360299834,0.46494895,1995.2,1994.3,0.49107617]
[1771360300113,6.51101487,1995.3,1994.0,0.49107617]
[1771360300114,0.46494895,1994.9,1994.0,0.49107617]
[1771360300344,0.46494895,1994.7,1993.4,0.49107617]
[1771360300476,0.46494895,1994.7,1993.6,0.49107617]
[1771360300682,0.46494895,1994.7,1993.4,0.49107617]
[1771360300895,9.38527334,1994.8,1993.2,0.49107617]
[1771360300896,0.46494895,1994.4,1993.2,0.49107617]
[1771360301226,0.46494895,1994.1,1992.9,0.49107617]
[1771360301388,0.46494895,1994.0,1992.9,0.49107617]
[1771360301725,0.46494895,1993.5,1992.6,0.00705733]
[1771360302006,6.51101487,1993.6,1992.6,0.00705733]
[1771360302007,1.18294895,1993.4,1992.6,0.00705733]
[1771360302209,1.18294895,1993.4,1992.6,1.26168806]
[1771360302420,0.718,1993.4,1992.6,1.26168806]
[1771360302815,1.25414578,1993.4,1992.6,1.26168806]
[1771360302993,2.43709473,1993.4,1992.6,1.26168044]
[1771360303190,0.46494895,1993.3,1992.6,0.00705733]
[1771360303389,0.46494895,1993.2,1992.0,1.25497766]
[1771360303616,0.46494895,1993.2,1991.9,1.74615924]
[1771360304809,0.46428663,1993.0,1991.9,1.74615924]
[1771360305115,0.46428663,1993.0,1991.5,5.68033328]
[1771360305116,0.46428663,1992.8,1991.6,0.46778744]
[1771360305408,0.46428663,1992.8,1991.5,1.91428611]
[1771360305409,0.46428663,1992.6,1991.5,1.25528611]
[1771360305584,0.46428663,1992.6,1991.4,1.25535097]
[1771360306000,0.46428663,1992.6,1991.3,5.48955894]
[1771360306001,0.46428663,1992.6,1991.3,1.72323364]
[1771360306399,0.46428663,1992.3,1990.9,0.46778744]
[1771360306639,0.46428663,1991.3,1990.1,0.29320017]
[1771360306821,0.46428663,1991.3,1989.3,1.50803732]
[1771360306822,0.46428663,1991.0,1989.6,0.46778744]
[1771360306988,0.46428663,1990.4,1989.4,1.25666029]
[1771360307184,0.719,1990.5,1989.4,1.72444773]
[1771360307417,6.9753015,1991.0,1989.5,0.46778744]
[1771360307623,0.431,1990.6,1989.5,0.46778744]
[1771360307816,0.553,1990.6,1989.5,0.46778744]
[1771360308018,0.406,1990.9,1989.7,6.97880231]
[1771360308220,1.25546711,1991.3,1990.2,0.001]
[1771360308390,0.46428663,1991.0,1990.2,0.001]
[1771360308788,1.72000012,1990.9,1990.2,0.001]
[1771360309018,1.25558736,1991.1,1990.2,0.001]
[1771360309314,0.719,1990.8,1990.2,0.001]
[1771360310827,0.1024,1991.2,1990.2,0.001]
[1771360311013,0.719,1990.8,1990.2,0.001]
[1771360313131,1.97478448,1990.8,1990.2,0.001]
[1771360313634,0.718,1990.7,1990.2,0.001]
[1771360313792,1.25558736,1991.1,1990.2,0.001]
[1771360313993,0.718,1991.2,1990.2,0.499646]
[1771360315131,0.718,1991.2,1990.3,1.25609204]
[1771360316157,0.718,1991.2,1990.2,0.001]
[1771360316158,0.46325563,1991.0,1990.2,0.001]
[1771360316296,6.51101487,1991.1,1990.2,0.001]
[1771360316297,0.46325563,1990.9,1990.2,0.001]
[1771360316490,0.904,1990.8,1990.2,0.001]
[1771360316842,0.904,1990.8,1990.2,1.25713952]
[1771360317490,0.904,1990.8,1990.2,0.001]
[1771360317912,2.15982181,1990.8,1990.2,0.001]
[1771360318115,0.904,1990.8,1990.2,0.001]
[1771360318821,0.718,1990.9,1990.2,0.001]
[1771360319317,0.718,1991.2,1990.2,0.499646]
[1771360319654,0.7109251,1991.2,1990.3,1.75473804]
[1771360320219,1.96645611,1991.2,1990.3,1.75473804]
[1771360320518,1.96645611,1991.2,1990.3,1.25609204]
[1771360321661,0.7109251,1991.2,1990.3,1.25609204]
[1771360321947,0.718,1991.7,1990.4,0.498646]
[1771360322153,0.46325563,1991.6,1990.4,0.498646]
[1771360322351,0.0011,1990.7,1990.3,1.25709204]
[1771360323168,0.0011,1990.7,1990.3,0.001]
[1771360324632,0.0011,1990.7,1990.3,0.499646]
[1771360324833,0.0011,1991.0,1990.3,0.499646]
[1771360325953,0.0011,1991.0,1990.5,0.498646]
[1771360327833,0.0011,1991.0,1990.7,0.498646]
[1771360328150,1.96717265,1991.8,1990.7,0.498646]
[1771360328555,0.712,1991.8,1990.8,0.498646]
[1771360328756,1.25504931,1992.0,1990.8,0.498646]
[1771360329058,0.46325563,1991.9,1990.6,1.25590274]
[1771360329936,1.25514609,1991.8,1990.6,1.75454874]
[1771360330156,5.48384002,1991.9,1990.6,1.75454874]
[1771360330157,1.7183658,1991.9,1990.7,0.498646]
[1771360330361,1.624,1992.2,1990.8,14.533397]
[1771360330529,0.905,1992.2,1991.3,6.51101487]
[1771360330945,0.905,1992.2,1991.3,1.164646]
[1771360331147,2.15991636,1992.2,1991.1,0.498646]
[1771360331345,0.905,1992.2,1991.2,1.164646]
[1771360331555,0.905,1992.2,1991.3,0.498646]
[1771360331940,0.905,1992.2,1991.5,0.498646]
[1771360332559,0.719,1992.6,1991.5,0.498646]
[1771360333164,1.97365283,1992.6,1991.5,0.498646]
[1771360333334,1.25465283,1992.6,1991.5,0.498646]
[1771360333954,5.01834804,1992.7,1991.5,0.498646]
[1771360333955,1.25451625,1992.8,1991.7,1.75385511]
[1771360334175,1.25451625,1992.8,1991.8,0.498646]
[1771360334558,2.15945877,1992.9,1991.8,0.498646]
[1771360335639,2.15945877,1992.9,1991.9,0.666]
[1771360335835,2.15945877,1992.9,1992.0,0.47619546]
[1771360336161,0.45549407,1993.4,1992.2,0.47619546]
[1771360336362,0.45549407,1993.4,1992.2,0.666]
[1771360336363,0.0011,1992.5,1992.2,0.666]
[1771360337263,0.0011,1992.8,1992.2,1.14219546]
[1771360337757,1.25388704,1993.8,1992.6,6.51101487]
[1771360337955,5.01418645,1994.4,1992.9,1.2544533]
[1771360337956,0.45549407,1994.2,1992.9,1.2544533]
[1771360338161,0.45549407,1994.1,1992.9,1.2544533]
[1771360338454,0.45549407,1994.1,1992.9,1.73064876]
[1771360338857,1.17449407,1994.0,1992.9,1.2544533]
[1771360339230,1.97263554,1994.2,1992.9,1.2544533]
[1771360339440,0.45549407,1994.1,1992.9,1.2544533]
[1771360340339,1.70924268,1994.1,1992.9,1.2544533]
[1771360340863,5.73379364,1994.2,1992.9,1.2544533]
[1771360340864,1.97267589,1994.2,1993.0,0.47619546]
[1771360341643,0.718,1994.2,1993.2,0.47619546]
[1771360342560,0.718,1994.2,1993.3,1.25420157]
[1771360342740,0.45549407,1994.1,1993.0,1.25439036]
[1771360343263,0.718,1994.2,1993.0,1.25439036]
[1771360343451,1.25359719,1994.3,1993.1,0.47619546]
[1771360343658,0.719,1994.2,1993.1,0.47619546]
[1771360344059,0.719,1994.2,1993.9,0.0070704]
[1771360345151,1.25364152,1994.2,1993.9,0.0070704]
[1771360345351,0.718,1994.2,1993.9,0.0070704]
[1771360347955,0.718,1994.2,1993.9,1.26089372]
[1771360348953,0.0011,1994.1,1993.9,1.26089372]
[1771360349186,0.0011,1994.1,1993.9,0.0070704]
[1771360349358,0.0011,1994.1,1993.1,0.47619546]
[1771360349672,0.45659407,1994.1,1993.2,1.25426449]
[1771360349881,0.1024,1994.9,1993.5,0.47619546]
[1771360350054,0.45659407,1995.8,1994.4,0.47619546]
[1771360350055,5.01078972,1995.7,1994.4,0.47619546]
[1771360350253,5.01188972,1995.7,1994.4,0.47619546]
[1771360350459,0.7181,1995.6,1994.4,0.47619546]
[1771360350655,1.17359407,1995.6,1994.4,0.47619546]
[1771360350980,0.0011,1995.5,1994.4,0.47619546]
[1771360351155,1.25391884,1995.5,1994.5,1.25344697]
[1771360351957,0.0011,1995.4,1994.5,1.25344697]
[1771360353673,1.25398162,1995.4,1994.4,0.47619546]
[1771360353876,0.0011,1995.3,1994.4,0.47619546]
[1771360355177,0.0011,1995.2,1994.4,0.47619546]
[1771360355384,0.0011,1995.4,1994.4,0.47619546]
[1771360355764,0.0011,1995.4,1994.5,1.25344697]
[1771360356383,0.0011,1995.4,1994.5,1.72964243]
[1771360356559,2.15686589,1995.5,1994.5,1.72964243]
[1771360356759,0.0011,1995.4,1994.5,1.72964243]
[1771360357165,0.0011,1995.4,1994.6,0.47619546]
[1771360357370,0.0011,1995.3,1994.6,0.47619546]
[1771360357980,0.0011,1995.3,1994.7,1.2533213]
[1771360358174,0.0011,1995.2,1994.7,1.2533213]
[1771360358885,0.0011,1995.1,1994.4,5.01390621]
[1771360359200,0.45659407,1995.3,1994.4,5.01390621]
[1771360359383,0.0011,1995.2,1994.4,5.01390621]
[1771360359578,0.45549407,1995.3,1994.4,5.01390621]
[1771360359782,0.0011,1995.2,1994.4,5.01390621]
[1771360359978,1.25410721,1995.2,1994.4,5.01390621]
[1771360360861,0.45659407,1995.1,1994.0,5.49103498]
[1771360361064,0.45549407,1994.9,1993.8,1.7300825]
[1771360361259,0.715,1994.8,1993.8,1.7300825]
[1771360361776,0.715,1994.8,1994.5,0.001]
[1771360361973,0.715,1994.8,1993.8,1.7300825]
[1771360361974,0.0011,1994.7,1993.8,1.7300825]
[1771360362162,1.2544213,1994.7,1993.8,1.7300825]
[1771360362898,0.0011,1994.6,1994.4,0.001]
[1771360363103,0.0011,1994.6,1993.8,1.25388704]
[1771360363277,0.0011,1994.6,1994.2,0.001]
[1771360363875,0.0011,1994.5,1994.2,0.001]
[1771360365575,0.0011,1994.5,1993.6,1.25401284]
[1771360365576,0.49622193,1994.6,1993.6,1.25401284]
[1771360366583,1.7496689,1994.5,1993.4,0.48606513]
[1771360366793,0.716,1994.4,1993.5,0.48606513]
[1771360368968,0.716,1994.4,1993.6,1.25401284]
[1771360368969,1.96954294,1994.4,1993.6,1.25401284]
[1771360370101,0.716,1994.4,1993.6,1.25401284]
[1771360370815,1.96951211,1994.4,1993.6,1.25401284]
[1771360371513,0.716,1994.4,1993.6,1.25401284]
[1771360371875,1.96951378,1994.4,1993.6,1.25401284]
[1771360372575,2.46573571,1994.4,1993.6,1.25401284]
[1771360372987,1.21222193,1994.4,1993.5,0.49556721]
[1771360373197,0.716,1994.4,1993.5,0.49556721]
[1771360373904,1.71579401,1995.0,1994.0,0.49556721]
[1771360374110,0.614,1994.9,1994.0,0.49556721]
[1771360374700,1.0766439,1994.9,1993.8,0.49556721]
[1771360375125,1.25325847,1994.8,1993.9,1.25382416]
[1771360375312,0.614,1994.9,1994.0,0.49556721]
[1771360376897,1.86720502,1994.9,1994.0,0.49556721]
[1771360377122,0.614,1994.9,1994.1,1.25369841]
[1771360377625,0.0011,1994.8,1994.1,1.74926562]
[1771360378004,0.0011,1994.8,1994.1,1.25369841]
[1771360378330,0.4637439,1994.8,1994.1,1.25369841]
[1771360379084,1.2533213,1994.7,1993.9,1.25382416]
[1771360380327,0.4626439,1994.6,1993.8,1.25383939]
[1771360380544,0.4626439,1994.6,1993.7,1.2549168]
[1771360380724,1.3656439,1994.5,1993.7,1.2549168]
[1771360381088,1.25357268,1994.3,1993.7,0.001]
[1771360381434,0.712,1994.2,1993.7,0.001]
[1771360383332,1.96564036,1994.2,1993.7,0.001]
[1771360385064,0.4626439,1994.1,1993.7,0.001]
[1771360385253,0.4626439,1994.1,1993.5,0.001]
[1771360385254,0.4626439,1993.9,1993.5,0.001]
[1771360387152,0.4626439,1993.7,1992.9,0.001]
[1771360387352,2.42965674,1993.6,1992.9,0.001]
[1771360388664,0.4626439,1993.5,1992.9,0.001]
[1771360389657,1.25413865,1993.4,1992.9,0.001]
[1771360390431,0.714,1993.3,1992.9,0.001]
[1771360391931,0.714,1993.3,1993.0,0.001]
[1771360393527,0.714,1993.4,1993.0,0.001]
[1771360393732,0.714,1993.4,1993.0,0.49656721]
[1771360394032,8.19651929,1993.9,1993.1,1.74989463]
[1771360394033,7.384,1993.9,1993.1,1.74989463]
[1771360394341,1.25380433,1994.0,1993.1,1.74989463]
[1771360394544,0.45409364,1993.8,1993.0,1.25534763]
[1771360396159,1.70804143,1993.8,1993.0,0.001]
[1771360396662,0.45409364,1993.8,1993.0,0.001]
[1771360396857,1.70798721,1993.8,1993.0,0.001]
[1771360398056,0.715,1993.7,1993.2,0.46560058]
[1771360398645,0.714,1993.8,1993.2,0.46560058]
[1771360399361,1.25374915,1994.1,1993.2,0.46560058]
[1771360399666,0.714,1994.0,1993.2,0.46560058]
[1771360400168,0.714,1994.0,1993.4,0.46560058]
[1771360403164,0.714,1994.0,1993.5,1.25407574]
[1771360403363,8.18881291,1994.3,1993.6,0.46560058]
[1771360403364,0.0011,1994.3,1993.6,0.46560058]
[1771360405665,0.7131,1994.8,1993.8,0.46560058]
[1771360405962,0.0011,1994.8,1993.8,0.46560058]
[1771360407164,0.0011,1994.2,1993.8,0.46560058]
[1771360407467,0.0011,1994.3,1993.8,0.46560058]
[1771360407663,0.0011,1994.3,1994.0,0.46560058]
[1771360407865,0.0011,1994.8,1994.0,0.46560058]
[1771360408050,0.0011,1994.5,1994.0,0.46560058]
[1771360408971,0.0011,1994.8,1994.1,0.46560058]
[1771360410170,0.0011,1994.8,1994.3,0.46560058]
[1771360411069,0.0011,1995.3,1994.4,0.46560058]
[1771360411368,0.0011,1995.3,1994.5,0.46560058]
[1771360411569,0.0011,1995.3,1994.3,6.53177908]
[1771360411570,0.45519364,1995.3,1994.3,1.12460058]
[1771360411752,0.0011,1995.3,1994.4,0.46560058]
[1771360411977,0.45519364,1995.3,1994.2,1.71923612]
[1771360412281,0.45409364,1995.1,1994.2,1.25363554]
[1771360412587,0.45409364,1994.9,1994.2,1.25363554]
[1771360412783,0.45409364,1994.9,1993.9,1.25382416]
[1771360414452,0.45409364,1994.9,1993.9,1.71942474]
[1771360414683,0.45409364,1994.9,1994.0,0.46560058]
[1771360414866,1.25321076,1994.9,1994.0,0.46560058]
[1771360417284,1.25321076,1994.9,1994.1,1.25369841]
[1771360417488,1.7073044,1994.9,1994.1,1.25369841]
[1771360418688,1.96416447,1995.0,1994.1,1.71929899]
[1771360418982,1.96414058,1995.0,1994.1,1.71929899]
[1771360419285,0.709,1995.0,1994.1,1.71929899]
[1771360419586,2.41621407,1995.1,1994.2,0.46560058]
[1771360420877,0.0011,1994.9,1994.2,0.46560058]
[1771360421186,0.0011,1994.9,1994.3,1.25357268]
[1771360425706,0.0011,1994.9,1994.4,0.45771508]
[1771360427415,0.0011,1994.9,1994.3,1.25357268]
[1771360427918,1.25429564,1994.9,1994.1,1.25369841]
[1771360428087,0.49998713,1994.8,1994.1,1.25369841]
[1771360428683,0.49998713,1994.8,1993.9,5.01524842]
[1771360429290,0.49998713,1994.8,1993.6,2.37172792]
[1771360429889,0.49998713,1994.6,1993.6,2.37172792]
[1771360430088,1.25344697,1994.5,1993.6,2.37172792]
[1771360430486,1.7534341,1994.5,1993.6,2.37172792]
[1771360432698,0.49998713,1994.4,1993.6,1.25401284]
[1771360432982,0.49998713,1994.4,1993.5,0.001]
[1771360434009,0.49998713,1994.4,1993.7,0.001]
[1771360434313,0.4890579,1994.2,1993.7,0.001]
[1771360434503,0.4890579,1994.0,1993.7,0.001]
[1771360436501,1.74287753,1994.0,1993.7,0.001]
[1771360437802,1.25381963,1994.0,1993.7,0.001]
[1771360438496,1.95974958,1994.1,1993.7,0.001]
[1771360441392,0.708,1994.1,1993.7,0.001]
[1771360442237,0.4890579,1994.0,1993.4,0.001]
[1771360442441,0.4890579,1994.0,1993.5,0.0009]
[1771360443139,0.4890579,1993.8,1993.4,0.001]
[1771360443331,1.1970579,1993.7,1993.4,0.0019]
[1771360444328,0.4890579,1993.6,1993.2,0.001]
[1771360444497,0.4890579,1993.6,1993.2,0.0019]
[1771360444896,1.25407574,1993.5,1993.2,0.0019]
[1771360445536,0.4890579,1993.8,1993.2,0.0019]
[1771360445838,13.11417908,1994.4,1993.2,0.47504433]
[1771360445839,0.607,1993.7,1993.2,0.47504433]
[1771360445999,0.4890579,1994.1,1993.2,0.47504433]
[1771360446000,0.607,1993.8,1993.2,0.47504433]
[1771360446199,0.709,1994.0,1993.2,0.47504433]
[1771360446630,0.709,1994.0,1993.2,0.47414433]
[1771360447234,0.709,1994.0,1993.4,0.47314433]
[1771360447531,5.50357374,1994.3,1993.4,0.47314433]
[1771360447703,1.9616875,1994.2,1993.5,0.0009]
[1771360448307,0.708,1994.2,1993.5,0.47404433]
[1771360449110,0.0011,1994.7,1993.7,0.47314433]
[1771360449310,1.25442712,1994.7,1993.7,0.47314433]
[1771360449743,0.0011,1994.7,1993.7,0.47314433]
[1771360450119,0.0011,1994.7,1993.9,0.47314433]
[1771360450623,0.0011,1994.7,1994.1,0.47314433]
[1771360451017,0.0011,1994.7,1994.3,0.47314433]
[1771360451239,0.0011,1994.7,1994.4,1.25350982]
[1771360451432,0.0011,1994.7,1994.4,1.25440982]
[1771360452245,0.0011,1994.7,1994.4,0.0009]
[1771360457330,0.0011,1994.7,1994.1,1.25369841]
[1771360457625,0.0011,1994.7,1994.2,0.48115855]
[1771360458041,0.0011,1994.7,1994.2,0.0009]
[1771360459153,0.0011,1994.6,1994.1,1.25369841]
[1771360459452,0.0011,1994.6,1994.2,0.0009]
[1771360462352,0.0011,1994.6,1994.2,0.48115855]
[1771360462646,0.0011,1994.6,1994.2,0.0009]
[1771360465356,0.0011,1995.0,1994.4,0.48025855]
[1771360465933,0.0011,1995.0,1994.5,0.48115855]
[1771360466135,0.0011,1995.0,1994.6,0.0009]
[1771360466657,0.0002,1995.0,1994.6,0.48025855]
[1771360467463,0.0002,1995.0,1994.7,1.2533213]
[1771360467759,0.0002,1995.0,1994.6,1.25333487]
[1771360469651,0.0002,1995.0,1994.5,5.0136546]
[1771360470737,0.0002,1995.0,1994.5,5.49391315]
[1771360471658,0.0002,1995.0,1994.5,5.0136546]
[1771360471858,0.0002,1995.0,1994.5,1.25344697]
[1771360471859,0.0011,1994.9,1994.5,1.25344697]
[1771360472079,1.18786139,1994.9,1994.2,1.25359192]
[1771360472367,0.48576139,1994.8,1993.9,5.0151653]
[1771360472577,0.48576139,1994.8,1993.9,5.49542385]
[1771360472732,0.48576139,1994.8,1993.9,1.25382416]
[1771360473561,0.48576139,1994.8,1993.8,1.25385194]
[1771360473764,0.48576139,1994.6,1993.8,1.25385194]
[1771360474850,0.48576139,1994.6,1993.8,1.73411049]
[1771360475050,1.2533213,1994.7,1993.8,1.73411049]
[1771360475363,0.7021,1994.9,1993.9,0.48025855]
[1771360475680,0.0011,1994.9,1993.9,0.48025855]
[1771360475868,0.0011,1994.9,1994.1,0.48025855]
[1771360476066,0.0011,1994.9,1994.2,0.48025855]
[1771360477767,0.0011,1994.9,1994.4,0.48025855]
[1771360479846,0.0011,1994.9,1994.6,0.48025855]
[1771360481858,0.0011,1994.9,1994.7,1.2533213]
[1771360483580,0.0011,1995.1,1994.8,0.48025855]
[1771360483876,0.0011,1995.1,1994.9,1.25319564]
[1771360484671,0.0011,1995.3,1994.9,1.73085408]
[1771360486569,0.0011,1995.8,1995.3,0.47765844]
[1771360487553,0.697,1996.5,1995.4,0.47765844]
[1771360487746,0.49929474,1996.6,1995.6,0.47765844]
[1771360488006,5.00784171,1996.9,1995.9,0.47765844]
[1771360488007,0.49929474,1996.9,1995.9,0.47765844]
[1771360488161,1.82598438,1997.0,1996.2,0.47765844]
[1771360488162,0.0011,1997.0,1996.2,0.47765844]
[1771360488492,0.0011,1997.0,1996.2,1.14265844]
[1771360488672,0.0011,1997.0,1995.8,7.25749622]
[1771360488673,0.49929474,1996.9,1995.8,7.25749622]
[1771360488853,0.49929474,1996.9,1996.1,0.665]
[1771360489450,0.0011,1997.0,1996.2,0.47765844]
[1771360489672,0.0011,1997.0,1996.3,0.47765844]
[1771360489870,0.0011,1997.0,1996.4,1.25225405]
[1771360490300,0.0011,1997.0,1996.5,0.47765844]
[1771360491292,0.50039474,1997.0,1996.2,1.25234112]
[1771360491854,1.2519405,1996.9,1996.0,1.25250501]
[1771360492296,1.75123524,1996.9,1996.0,1.25250501]
[1771360492585,0.49929474,1996.8,1996.0,1.25250501]
[1771360494281,1.75134949,1996.8,1996.0,1.25250501]
[1771360494586,0.49929474,1996.8,1996.0,1.25250501]
[1771360494770,5.00872989,1997.0,1996.0,1.71413904]
[1771360494771,0.0011,1997.0,1996.0,1.71413904]
[1771360495093,0.0011,1997.0,1996.1,0.46163403]
[1771360495384,0.0011,1997.0,1996.2,0.46163403]
[1771360495685,0.46989246,1996.9,1996.1,0.001]
[1771360496056,0.47099246,1996.9,1996.1,0.001]
[1771360496366,1.2520032,1996.8,1996.1,0.001]
[1771360496794,0.0011,1996.9,1996.2,0.46163403]
[1771360496963,0.0011,1997.0,1996.3,1.12763403]
[1771360497284,0.0011,1997.0,1996.4,0.46163403]
[1771360497856,1.25299284,1997.0,1996.3,0.667]
[1771360498052,1.25299284,1997.0,1996.1,1.12963403]
[1771360498257,0.47099246,1997.0,1996.2,1.25237952]
[1771360498456,0.0011,1997.0,1996.3,0.46163403]
[1771360499258,0.47099246,1997.0,1996.2,1.25237952]
[1771360500313,0.47099246,1997.0,1996.1,5.01051808]
[1771360500314,1.2519405,1996.9,1996.1,0.001]
[1771360500518,1.25302337,1997.0,1996.1,0.46263403]
[1771360501196,0.0011,1997.0,1996.1,0.46263403]
[1771360501419,1.25299286,1997.0,1996.1,0.46263403]
[1771360502215,0.0011,1997.0,1996.1,0.46263403]
[1771360502391,0.0011,1997.0,1996.2,1.25237952]
[1771360503014,0.0011,1997.0,1996.3,0.46163403]
[1771360503482,0.0011,1997.0,1996.3,7.53227401]
[1771360503888,0.47099246,1997.0,1996.2,1.25237952]
[1771360504519,0.46989246,1996.8,1996.1,0.001]
[1771360505718,0.46989246,1996.8,1996.1,1.25343479]
[1771360506286,0.46989246,1996.8,1996.1,0.001]
[1771360506490,0.46989246,1996.6,1996.1,0.001]
[1771360507926,0.46989246,1996.6,1996.2,0.001]
[1771360508696,1.25211226,1996.7,1996.2,0.001]
[1771360511323,1.25204582,1996.8,1996.2,0.001]
[1771360512326,2.4199713,1996.9,1996.2,0.001]
[1771360512524,0.0011,1996.9,1996.2,0.46263403]
[1771360513239,0.0011,1996.9,1996.4,0.46163403]
[1771360513397,0.0011,1996.9,1996.5,1.71382536]
[1771360513601,0.0011,1996.9,1996.5,1.25219133]
[1771360514218,0.0011,1996.9,1996.5,1.71382536]
[1771360514823,0.0011,1996.9,1996.5,1.25219133]
[1771360515127,0.0011,1996.9,1996.3,5.00917265]
[1771360515322,0.0011,1996.9,1996.2,0.001]
[1771360516007,0.45156108,1996.7,1996.2,0.001]
[1771360516324,0.0011,1996.9,1996.2,0.001]
[1771360516623,0.45266108,1996.9,1996.2,0.001]
[1771360517399,0.45156108,1996.7,1996.2,0.001]
[1771360519017,1.25307924,1996.9,1996.2,0.001]
[1771360519218,0.699,1996.8,1996.2,0.001]
[1771360519700,1.95102787,1996.8,1996.2,0.001]
[1771360519904,1.95212787,1996.8,1996.2,0.001]
[1771360520308,0.0011,1996.8,1996.2,0.001]
[1771360520828,0.0011,1996.8,1996.2,0.47300403]